[Event "Biel Challengers Blitz 2024"]
[White "Maurizzi,Marc`Andria"]
[Black "Bjerre,Jonas Buhl"]
[Site "Biel"]
[Round "6.3"]
[Annotator "TA"]
[Result "1-0"]
[Date "2024.07.21"]
[WhiteElo "2610"]
[BlackElo "2653"]
[PlyCount "75"]
[TimeControl "180+2"]

{[%evp 9,74,25,26,4,15,10,9,0,14,-2,25,13,21,4,12,0,-4,-20,12,0,0,-3,-11,-19,-21,-21,-27,-26,-22,-9,0,0,0,-108,-106,-71,-52,-41,0,0,0,-16,-6,-15,0,0,49,37,67,0,230,243,213,98,99,105,279,285,282,279,306,295,5114,4133,29998,29999,29999]} 1. e4 {[%emt 0:0:2]} e5 {[%emt 0:0:0]} 2. Nf3 {[%emt 0:0:3]} Nc6 {[%emt 0:0:2]} 3. Bc4 {[%emt 0:0:3]} Bc5 {[%emt 0:0:1]} 4. O-O {[%emt 0:0:2]} Nf6 {[%emt 0:0:2]} 5. d3 {[%emt 0:0:1]} O-O {[%emt 0:0:2]} 6. Nbd2 {[%emt 0:0:1]} a5 {[%emt 0:0:8]} 7. c3 {[%emt 0:0:2]} d6 {[%emt 0:0:0]} 8. h3 {[%emt 0:0:2] The position is equal.} Be6 {[%emt 0:0:3]} 9. Bb5 {[%emt 0:0:1]} Ba7 {[%emt 0:0:2]} 10. Re1 {[%emt 0:0:5]} Ne7 {[%emt 0:0:5]} 11. d4 {[%emt 0:0:1]} Ng6 {[%emt 0:0:5]} 12. Nf1 {[%emt 0:0:1]} exd4 {[%emt 0:0:6]} 13. Nxd4 {[%emt 0:0:7]} Bd7 {[%emt 0:0:6]} 14. Bd3 {[%emt 0:0:13]} Re8 {[%emt 0:0:16]} 15. Ng3 {[%emt 0:0:8]} d5 {[%emt 0:0:3]} 16. Bg5 {[%emt 0:0:22]} h6 {[%emt 0:0:4]} 17. Bxf6 {[%emt 0:0:1]} Qxf6 {[%emt 0:0:2]} 18. exd5 {[%emt 0:0:1]} Rxe1+ {[%emt 0:0:45]} 19. Qxe1 {[%emt 0:0:1]} Nf4 {[%emt 0:0:2]} 20. Qe4 {[%emt 0:0:7]} g6 {[%emt 0:0:9] [#] And now ...Bxd4 would win.} 21. Bc4 {[%emt 0:0:52]} (21. Nge2 $11 {keeps the balance.} Nxe2+ 22. Bxe2 )Re8 $17 {[%emt 0:0:6]} 22. Qc2 {[%emt 0:0:1]} Bxd4 {[%emt 0:0:16]} 23. cxd4 {[%emt 0:0:1]} Qxd4 {[%emt 0:0:1][%cal Od4e5]} 24. Rd1 {[%emt 0:0:12]} Qc5 {[%emt 0:0:3]} 25. Ne4 {[%emt 0:0:50]} Qe7 {[%emt 0:0:1]} 26. Ng3 {[%emt 0:0:1]} h5 {[%emt 0:0:6] [#] aiming for ...h4.} 27. Rd4 {[%emt 0:0:16]} Qf6 {[%emt 0:0:12]} (27... Qg5 $11 {was preferrable.} 28. h4 Qxh4 )28. Qd2 $36 {[%emt 0:0:1][%csl LRa5,LRf4][%mdl 2048] White fights for an advantage.} g5 {[%emt 0:0:2][%cal Oe8e1]} 29. d6 {[%emt 0:0:8]} (29. Ne4 $1 $14 Qf5 30. f3 (30. Nxg5 Qxg5 31. Qxf4 Qxf4 $11 ))cxd6 $2 {[%emt 0:0:21]} (29... c5 $1 $11 30. Re4 Rxe4 31. Nxe4 Qe5 )30. Rxd6 $18 {[%emt 0:0:3]} Be6 {[%emt 0:0:0]} 31. Bxe6 {[%emt 0:0:6]} (31. Qxa5 $18 {Ne4 is the strong threat.} Kg7 32. Qb5 )Rxe6 $16 {[%emt 0:0:1]} 32. Rxe6 {[%emt 0:0:4]} Qxe6 $18 {[%emt 0:0:8][%mdl 4096] Endgame. KQN-KQN. A mistake that costs the game.} (32... Nxe6 $16 {was worth a try.} 33. Nxh5 Qe5 )33. Qd8+ {[%emt 0:0:2]} ({Much less strong is} 33. Qxa5 $6 Qe7 34. Nf5 Qf6 $18 )Kh7 {[%emt 0:0:8] ( -> ...Qe1+)} 34. Qxg5 {[%emt 0:0:3]} Qe1+ {[%emt 0:0:1]} 35. Kh2 {[%emt 0:0:1]} Qxf2 $2 {[%emt 0:0:1]} (35... Ne6 36. Qxh5+ Kg8 )36. Nf5 {[%emt 0:0:5]} (36. Qxa5 $2 Qxg2# )Ne6 {[%emt 0:0:17] Inhibits Qg7+.} 37. Qh6+ {[%emt 0:0:1]} Kg8 {[%emt 0:0:1]} 38. Ne7# {[%emt 0:0:1] Weighted Error Value: White=0.19 (very precise) /Black=0.39.  Loses game:     	---       	Black=2      Mistake:       	White=3     	Black=2      Inaccurate:     	---       	Black=4      OK:         	White=8     	Black=12     Best:        	White=6     	Black=4} 1-0

[Event "Biel Challengers Blitz 2024"]
[White "Maurizzi,Marc`Andria"]
[Black "Samunenkov,Ihor"]
[Site "Biel"]
[Round "7.1"]
[Annotator "RC"]
[Result "0-1"]
[Date "2024.07.21"]
[WhiteElo "2610"]
[BlackElo "2532"]
[PlyCount "174"]
[TimeControl "180+2"]

1. d4 {[%emt 0:0:1]} Nf6 {[%emt 0:0:1]} 2. c4 {[%emt 0:0:1]} e6 {[%emt 0:0:1]} 3. Nf3 {[%emt 0:0:0]} d5 {[%emt 0:0:1]} 4. Nc3 {[%emt 0:0:1]} c6 {[%emt 0:0:1]} 5. g3 {[%emt 0:0:21]} Be7 {[%emt 0:0:3]} 6. Bg2 {[%emt 0:0:4]} O-O {[%emt 0:0:2]} 7. O-O {[%emt 0:0:2]} a5 {[%emt 0:0:2]} 8. Bf4 {[%emt 0:0:1]} dxc4 {[%emt 0:0:3]} 9. Ne5 {[%emt 0:0:0]} Nd5 {[%emt 0:0:3]} 10. Nxc4 {[%emt 0:0:2]} Nd7 {[%emt 0:0:1]} 11. Rc1 {[%emt 0:0:5]} Nxf4 {[%emt 0:0:5]} 12. gxf4 {[%emt 0:0:1]} Nf6 {[%emt 0:0:2]} 13. e3 {[%emt 0:0:2]} Nd5 {[%emt 0:0:3]} 14. Kh1 {[%emt 0:0:2]} Kh8 {[%emt 0:0:3]} 15. Ne4 {[%emt 0:0:7]} a4 {[%emt 0:0:26]} 16. a3 {[%emt 0:0:2]} Bd7 {[%emt 0:0:9]} 17. Qh5 {[%emt 0:0:2]} Be8 {[%emt 0:0:19]} 18. Qh3 {[%emt 0:0:1]} Rc8 {[%emt 0:0:14]} 19. Rg1 {[%emt 0:0:6]} f5 {[%emt 0:0:22]} 20. Nc5 {[%emt 0:0:12]} Rf6 {[%emt 0:0:3]} 21. Nxb7 {[%emt 0:0:6]} Qc7 {[%emt 0:0:3]} 22. Nc5 {[%emt 0:0:3]} Rh6 {[%emt 0:0:2]} 23. Nxe6 {[%emt 0:0:20]} Rxe6 {[%emt 0:0:8]} 24. Qxf5 {[%emt 0:0:1]} Rf6 {[%emt 0:0:23]} 25. Qd3 {[%emt 0:0:2]} Qd8 {[%emt 0:0:8]} 26. Ne5 {[%emt 0:0:4]} Rh6 {[%emt 0:0:4]} 27. Qf5 {[%emt 0:0:22]} Rf6 {[%emt 0:0:5]} 28. Qd3 {[%emt 0:0:4]} Bf8 {[%emt 0:0:3]} 29. Bf3 {[%emt 0:0:12]} Rh6 {[%emt 0:0:4]} 30. Rg2 {[%emt 0:0:3]} Nf6 {[%emt 0:0:15]} 31. Qc4 {[%emt 0:0:11]} c5 {[%emt 0:0:3]} 32. d5 {[%emt 0:0:9]} Bd6 {[%emt 0:0:5]} 33. Rcg1 {[%emt 0:0:2]} Rc7 {[%emt 0:0:1]} 34. Nc6 {[%emt 0:0:5]} Qd7 {[%emt 0:0:3]} 35. Rg3 {[%emt 0:0:11]} Qf5 {[%emt 0:0:6]} 36. Ne5 {[%emt 0:0:38]} Bxe5 {[%emt 0:0:9]} 37. fxe5 {[%emt 0:0:2]} Qxe5 {[%emt 0:0:2]} 38. Qa6 {[%emt 0:0:6]} Rd7 {[%emt 0:0:10]} 39. Qc8 {[%emt 0:0:3]} Rh4 {[%emt 0:0:5]} 40. Qxc5 {[%emt 0:0:3]} Qd6 {[%emt 0:0:4]} 41. Qxd6 {[%emt 0:0:7]} Rxd6 {[%emt 0:0:1]} 42. Rxg7 {[%emt 0:0:1]} Bg6 {[%emt 0:0:2]} 43. Ra7 {[%emt 0:0:3]} Rd8 {[%emt 0:0:10]} 44. Rd1 {[%emt 0:0:8]} Ne4 {[%emt 0:0:1]} 45. Kg1 {[%emt 0:0:6]} Rg8 {[%emt 0:0:1]} 46. Kf1 {[%emt 0:0:0]} Rxh2 {[%emt 0:0:1]} 47. Bxe4 {[%emt 0:0:5]} Bxe4 {[%emt 0:0:2]} 48. Rf7 {[%emt 0:0:2]} Rh1+ {[%emt 0:0:6]} 49. Ke2 {[%emt 0:0:0]} Rxd1 {[%emt 0:0:1]} 50. Kxd1 {[%emt 0:0:1]} Bxd5 {[%emt 0:0:2]} 51. Rf5 {[%emt 0:0:1]} Bb3+ {[%emt 0:0:1]} 52. Ke2 {[%emt 0:0:1]} Rc8 {[%emt 0:0:2]} 53. e4 {[%emt 0:0:3]} Kg7 {[%emt 0:0:2]} 54. Ke3 {[%emt 0:0:1]} Rc2 {[%emt 0:0:2]} 55. Ra5 {[%emt 0:0:1]} Rxb2 {[%emt 0:0:2]} 56. Ra7+ {[%emt 0:0:1]} Kg6 {[%emt 0:0:2]} 57. f4 {[%emt 0:0:1]} h5 {[%emt 0:0:4]} 58. f5+ {[%emt 0:0:3]} Kg5 {[%emt 0:0:1]} 59. Rg7+ {[%emt 0:0:1]} Kf6 {[%emt 0:0:3]} 60. Rg6+ {[%emt 0:0:0]} Ke5 {[%emt 0:0:1]} 61. Ra6 {[%emt 0:0:3]} Rh2 {[%emt 0:0:5]} 62. Ra5+ {[%emt 0:0:1]} Kf6 {[%emt 0:0:1]} 63. Kd4 {[%emt 0:0:2]} Rd2+ {[%emt 0:0:2]} 64. Ke3 {[%emt 0:0:1]} Rd1 {[%emt 0:0:1]} 65. Ra6+ {[%emt 0:0:3]} Ke5 {[%emt 0:0:1]} 66. Ra5+ {[%emt 0:0:0]} Kd6 {[%emt 0:0:3]} 67. Ra6+ {[%emt 0:0:4]} Kc5 {[%emt 0:0:2]} 68. Rh6 {[%emt 0:0:2]} Bc2 {[%emt 0:0:2]} 69. f6 {[%emt 0:0:4]} Rf1 {[%emt 0:0:3]} 70. Rxh5+ {[%emt 0:0:3]} Kd6 {[%emt 0:0:2]} 71. Ra5 {[%emt 0:0:2]} Ke6 {[%emt 0:0:3]} 72. e5 {[%emt 0:0:0]} Rf5 {[%emt 0:0:3]} 73. Kd4 {[%emt 0:0:3]} Rf4+ {[%emt 0:0:1]} 74. Kc3 {[%emt 0:0:0]} Bb3 {[%emt 0:0:2]} 75. Rb5 {[%emt 0:0:2]} Rg4 {[%emt 0:0:2]} 76. Ra5 {[%emt 0:0:3]} Rf4 {[%emt 0:0:2]} 77. Rc5 {[%emt 0:0:1]} Bd5 {[%emt 0:0:1]} 78. Ra5 {[%emt 0:0:2]} Kxe5 {[%emt 0:0:3]} 79. f7 {[%emt 0:0:2]} Rxf7 {[%emt 0:0:2]} 80. Rxa4 {[%emt 0:0:1]} Rf3+ {[%emt 0:0:1]} 81. Kd2 {[%emt 0:0:1]} Rh3 {[%emt 0:0:3]} 82. Ra7 {[%emt 0:0:2]} Kd4 {[%emt 0:0:1]} 83. Re7 {[%emt 0:0:4]} Rxa3 {[%emt 0:0:2]} 84. Ke2 {[%emt 0:0:1]} Ra2+ {[%emt 0:0:1]} 85. Kf1 {[%emt 0:0:3]} Be4 {[%emt 0:0:1]} 86. Kg1 {[%emt 0:0:9]} Ke3 {[%emt 0:0:1]} 87. Rg7 {[%emt 0:0:1]} Ra1+ {[%emt 0:0:3]} 0-1

[Event "Biel Challengers Blitz 2024"]
[White "Bjerre,Jonas Buhl"]
[Black "Vaishali,Rameshbabu"]
[Site "Biel"]
[Round "7.2"]
[Annotator "TA"]
[Result "1-0"]
[Date "2024.07.21"]
[WhiteElo "2653"]
[BlackElo "2489"]
[PlyCount "99"]
[TimeControl "180+2"]

{[%evp 34,99,0,0,0,0,0,0,5,-12,0,-4,0,0,0,0,0,0,0,0,0,0,15,18,16,24,16,38,424,197,335,242,250,255,204,180,199,178,318,297,541,0,266,224,534,531,864,295,29976,29977,29977,29978,29977,29973,6057,1525,1681,954,1342,1185,1022,989,1611,930,1575,887,1386,1275]} 1. e4 {[%emt 0:0:1]} e5 {[%emt 0:0:1]} 2. Nf3 {[%emt 0:0:1]} Nc6 {[%emt 0:0:1]} 3. Bb5 {[%emt 0:0:2]} a6 {[%emt 0:0:1]} 4. Ba4 {[%emt 0:0:0]} Nf6 {[%emt 0:0:2]} 5. O-O {[%emt 0:0:5]} d6 {[%emt 0:0:3]} 6. Re1 {[%emt 0:0:11]} Bd7 {[%emt 0:0:34]} 7. c3 {[%emt 0:0:3]} g6 {[%emt 0:0:1]} 8. d4 {[%emt 0:0:1]} Bg7 {[%emt 0:0:1]} 9. h3 {[%emt 0:0:1] C79: Spanische Partie (Russische Variante).} O-O {[%emt 0:0:2]} 10. Bc2 {[%emt 0:0:1]} Re8 {[%emt 0:0:9]} 11. a4 $5 {[%emt 0:0:16][%mdl 4] Eine vielversprechende Nebenvariante.} exd4 {[%emt 0:0:14]} 12. cxd4 {[%emt 0:0:3]} Nb4 {[%emt 0:0:1]} 13. Nc3 {[%emt 0:0:3]} c5 $146 {[%emt 0:0:20]} ({Predecessor:} 13... Nxc2 14. Qxc2 c5 15. dxc5 dxc5 16. Be3 Qa5 17. Nd2 Be6 18. f4 c4 19. Nf3 Rad8 {1-0 Agmanov,Z (2460)-Kazhgaleyev,M (2490) KAZ-ch Astana 2023 (10)} )14. d5 {[%emt 0:0:16]} Nxc2 {[%emt 0:0:10]} 15. Qxc2 {[%emt 0:0:2]} b5 {[%emt 0:0:1]} 16. Bf4 {[%emt 0:0:26]} Qb6 {[%emt 0:0:36]} 17. axb5 {[%emt 0:0:13]} axb5 {[%emt 0:0:1]} 18. Rxa8 {[%emt 0:0:1]} Rxa8 {[%emt 0:0:1]} 19. e5 {[%emt 0:0:14]} dxe5 {[%emt 0:0:4]} 20. Nxe5 {[%emt 0:0:2]} Bf5 {[%emt 0:0:4]} 21. Qb3 {[%emt 0:0:4]} b4 {[%emt 0:0:21]} 22. g4 {[%emt 0:0:13]} Bc2 {[%emt 0:0:25]} 23. Qxc2 {[%emt 0:0:8]} bxc3 {[%emt 0:0:1]} 24. bxc3 {[%emt 0:0:15]} Nxd5 {[%emt 0:0:2]} 25. Qe4 {[%emt 0:0:13]} Rd8 $1 {[%emt 0:0:2]} 26. Bg3 {[%emt 0:0:12]} Qe6 {[%emt 0:0:22]} 27. Rd1 {[%emt 0:0:10]} Rd6 {[%emt 0:0:9]} 28. c4 {[%emt 0:0:14]} Nc3 {[%emt 0:0:3]} 29. Qa8+ {[%emt 0:0:11]} Bf8 {[%emt 0:0:1]} 30. Re1 {[%emt 0:0:3]} Qf6 $2 {[%emt 0:0:5][%mdl 8192]} ({Günstiger ist} 30... Rd2 $14 )31. Kh2 {[%emt 0:0:6]} (31. Qa5 Nd1 32. Qa1 (32. Qxc5 Rd3 $18 )Nxf2 $18 )(31. Qa1 $142 )Rd8 {[%emt 0:0:1]} (31... Qd8 $142 32. Qb7 Qe7 )32. Qa3 {[%emt 0:0:4]} Nd1 {[%emt 0:0:3]} 33. Kg2 {[%emt 0:0:2]} h5 {[%emt 0:0:1]} 34. gxh5 {[%emt 0:0:3]} gxh5 {[%emt 0:0:1] [#]} 35. h4 $1 {[%emt 0:0:0]} Bg7 {[%emt 0:0:3]} (35... Bh6 $142 36. Qb3 (36. Qxc5 Bf4 $18 )Bf4 )36. Qb3 {[%emt 0:0:1]} Qf5 $2 {[%emt 0:0:3]} (36... Qe7 37. Nd3 Rxd3 38. Qb8+ Rd8 (38... Qf8 $2 39. Re8 $18 )39. Rxe7 Rxb8 40. Bxb8 Nb2 )37. Nf3 $2 {[%emt 0:0:4]} (37. Rxd1 $18 Qe4+ (37... Rxd1 $2 38. Qxd1 Bf6 39. Qf3 $18 )38. Nf3 Rxd1 39. Qxd1 Qxc4 40. Qd8+ Bf8 41. Qg5+ Bg7 42. Qxh5 )Qd3 $2 {[%emt 0:0:2][%mdl 8192]} (37... Nb2 $1 $11 {und Schwarz muss sich keine Sorgen machen.} )38. Qb6 {[%emt 0:0:4]} Nc3 $2 {[%emt 0:0:3]} (38... Rc8 {ist eine bessere Chance.} 39. Ng5 Nc3 )39. Ne5 $18 {[%emt 0:0:1]} ({Nicht} 39. Qxc5 Ne4 40. Qc7 (40. Qxh5 Nxg3 41. Kxg3 Qxc4 $14 )Nxg3 $16 )Qd4 {[%emt 0:0:2]} 40. Qc7 $2 {[%emt 0:0:3]} (40. Nc6 Na4 41. Qxd8+ Qxd8 42. Nxd8 )Ne4 $2 {[%emt 0:0:1]} (40... Rf8 $18 41. Nd7 Ra8 )41. Qxf7+ {[%emt 0:0:1]} Kh8 {[%emt 0:0:1]} 42. Qxh5+ {[%emt 0:0:2]} Kg8 {[%emt 0:0:1]} 43. Qf7+ {[%emt 0:0:1]} Kh8 {[%emt 0:0:0]} 44. Ng6+ {[%emt 0:0:3]} (44. Nc6 $142 Qd2 45. Qh5+ (45. Rxe4 Rf8 46. Re8 Rxe8 47. Qxe8+ Kh7 48. Ne7 Qd3 49. Qg8+ Kh6 50. Qe6+ Kh7 )Qh6 46. Qxh6+ Bxh6 47. Nxd8 Nxg3 48. fxg3 )Kh7 $18 {[%emt 0:0:1]} 45. Be5 {[%emt 0:0:7]} Qxf2+ {[%emt 0:0:2]} 46. Qxf2 {[%emt 0:0:2]} Nxf2 {[%emt 0:0:1]} 47. Kxf2 {[%emt 0:0:2]} Rd2+ {[%emt 0:0:8]} 48. Re2 {[%emt 0:0:4]} Rd3 {[%emt 0:0:3]} 49. Bxg7 {[%emt 0:0:2]} Kxg6 {[%emt 0:0:1]} 50. Be5 {[%emt 0:0:0]} 1-0

[Event "Biel Challengers Blitz 2024"]
[White "Donchenko,Alexander"]
[Black "Salem,A.R. Saleh"]
[Site "Biel"]
[Round "7.3"]
[Annotator "RC"]
[Result "1/2-1/2"]
[Date "2024.07.21"]
[WhiteElo "2639"]
[BlackElo "2638"]
[PlyCount "177"]
[TimeControl "180+2"]

1. c4 {[%emt 0:0:1]} c5 {[%emt 0:0:1]} 2. g3 {[%emt 0:0:1]} g6 {[%emt 0:0:0]} 3. Bg2 {[%emt 0:0:0]} Bg7 {[%emt 0:0:1]} 4. Nc3 {[%emt 0:0:1]} Nc6 {[%emt 0:0:1]} 5. Nf3 {[%emt 0:0:1]} e6 {[%emt 0:0:1]} 6. d4 {[%emt 0:0:2]} cxd4 {[%emt 0:0:1]} 7. Nb5 {[%emt 0:0:1]} d5 {[%emt 0:0:1]} 8. cxd5 {[%emt 0:0:1]} exd5 {[%emt 0:0:1]} 9. O-O {[%emt 0:0:3]} Nf6 {[%emt 0:0:1]} 10. Nbxd4 {[%emt 0:0:4]} O-O {[%emt 0:0:2]} 11. Bf4 {[%emt 0:0:2]} Ne4 {[%emt 0:0:20]} 12. Nxc6 {[%emt 0:0:18]} bxc6 {[%emt 0:0:1]} 13. Be5 {[%emt 0:0:1]} Re8 {[%emt 0:0:2]} 14. Bxg7 {[%emt 0:0:2]} Kxg7 {[%emt 0:0:0]} 15. Rc1 {[%emt 0:0:2]} Qf6 {[%emt 0:0:8]} 16. Qd4 {[%emt 0:0:4]} Bd7 {[%emt 0:0:7]} 17. Rfd1 {[%emt 0:0:3]} a5 {[%emt 0:0:5]} 18. Qxf6+ {[%emt 0:0:7]} Kxf6 {[%emt 0:0:19]} 19. Nd4 {[%emt 0:0:1]} Ra6 {[%emt 0:0:6]} 20. Bxe4 {[%emt 0:0:15]} Rxe4 {[%emt 0:0:3]} 21. e3 {[%emt 0:0:3]} a4 {[%emt 0:0:13]} 22. Rc5 {[%emt 0:0:13]} Ke7 {[%emt 0:0:6]} 23. Rdc1 {[%emt 0:0:24]} Kd6 {[%emt 0:0:1]} 24. Kf1 {[%emt 0:0:1]} Re8 {[%emt 0:0:11]} 25. R5c2 {[%emt 0:0:16]} Rb8 {[%emt 0:0:1]} 26. h4 {[%emt 0:0:13]} Rbb6 {[%emt 0:0:6]} 27. Ke2 {[%emt 0:0:9]} Ra5 {[%emt 0:0:1]} 28. b4 {[%emt 0:0:37]} axb3 {[%emt 0:0:1]} 29. Nxb3 {[%emt 0:0:1]} Ra3 {[%emt 0:0:1]} 30. Kf3 {[%emt 0:0:9]} Bf5 {[%emt 0:0:8]} 31. Rd2 {[%emt 0:0:1]} Ra4 {[%emt 0:0:18]} 32. Nc5 {[%emt 0:0:7]} Ra5 {[%emt 0:0:12]} 33. Nb3 {[%emt 0:0:1]} Ra4 {[%emt 0:0:5]} 34. Nc5 {[%emt 0:0:1]} Rab4 {[%emt 0:0:5]} 35. Nb3 {[%emt 0:0:8]} Ra6 {[%emt 0:0:22]} 36. Nc5 {[%emt 0:0:5]} Ra7 {[%emt 0:0:7]} 37. Nb3 {[%emt 0:0:4]} Bd7 {[%emt 0:0:14]} 38. Nc5 {[%emt 0:0:4]} Bg4+ {[%emt 0:0:1]} 39. Kg2 {[%emt 0:0:1]} Rb5 {[%emt 0:0:3]} 40. Nb3 {[%emt 0:0:9]} c5 {[%emt 0:0:6]} 41. Rdc2 {[%emt 0:0:12]} c4 {[%emt 0:0:2]} 42. Nd4 {[%emt 0:0:1]} Rb6 {[%emt 0:0:2]} 43. f3 {[%emt 0:0:4]} Bd7 {[%emt 0:0:1]} 44. Ne2 {[%emt 0:0:3]} Ba4 {[%emt 0:0:12]} 45. Rd2 {[%emt 0:0:1]} Rab7 {[%emt 0:0:0]} 46. Nc3 {[%emt 0:0:2]} Rb2 {[%emt 0:0:1]} 47. Rxb2 {[%emt 0:0:4]} Rxb2+ {[%emt 0:0:1]} 48. Kh3 {[%emt 0:0:2]} Bd7+ {[%emt 0:0:1]} 49. g4 {[%emt 0:0:1]} h5 {[%emt 0:0:6]} 50. Kg3 {[%emt 0:0:1]} hxg4 {[%emt 0:0:1]} 51. fxg4 {[%emt 0:0:0]} Ke5 {[%emt 0:0:1]} 52. h5 {[%emt 0:0:4]} gxh5 {[%emt 0:0:3]} 53. gxh5 {[%emt 0:0:0]} Bf5 {[%emt 0:0:5]} 54. h6 {[%emt 0:0:4]} Rb6 {[%emt 0:0:0]} 55. Rd1 {[%emt 0:0:4]} Bd3 {[%emt 0:0:6]} 56. Rh1 {[%emt 0:0:2]} Bh7 {[%emt 0:0:5]} 57. Rh5+ {[%emt 0:0:1]} f5 {[%emt 0:0:2]} 58. Rh4 {[%emt 0:0:6]} Ra6 {[%emt 0:0:7]} 59. Rd4 {[%emt 0:0:4]} Bg8 {[%emt 0:0:14]} 60. Rh4 {[%emt 0:0:1]} Bh7 {[%emt 0:0:1]} 61. Rd4 {[%emt 0:0:1]} Bg8 {[%emt 0:0:1]} 62. h7 {[%emt 0:0:5]} Bxh7 {[%emt 0:0:0]} 63. Rxd5+ {[%emt 0:0:1]} Ke6 {[%emt 0:0:1]} 64. Rc5 {[%emt 0:0:1]} Ra3 {[%emt 0:0:5]} 65. Rxc4 {[%emt 0:0:2]} Ke5 {[%emt 0:0:1]} 66. Kf2 {[%emt 0:0:3]} Bg8 {[%emt 0:0:1]} 67. Rc5+ {[%emt 0:0:0]} Kd6 {[%emt 0:0:4]} 68. Rc8 {[%emt 0:0:2]} Ke7 {[%emt 0:0:7]} 69. Rxg8 {[%emt 0:0:7]} Rxc3 {[%emt 0:0:1]} 70. Ra8 {[%emt 0:0:0]} Rc4 {[%emt 0:0:2]} 71. Ra6 {[%emt 0:0:3]} f4 {[%emt 0:0:2]} 72. Kf3 {[%emt 0:0:3]} fxe3 {[%emt 0:0:1]} 73. Kxe3 {[%emt 0:0:1]} Kd7 {[%emt 0:0:0]} 74. Kd3 {[%emt 0:0:0]} Rh4 {[%emt 0:0:1]} 75. Rb6 {[%emt 0:0:1]} Kc7 {[%emt 0:0:1]} 76. Rb3 {[%emt 0:0:1]} Rh3+ {[%emt 0:0:2]} 77. Kc4 {[%emt 0:0:1]} Rh4+ {[%emt 0:0:8]} 78. Kc3 {[%emt 0:0:1]} Rh3+ {[%emt 0:0:1]} 79. Kb2 {[%emt 0:0:0]} Rh2+ {[%emt 0:0:0]} 80. Ka3 {[%emt 0:0:1]} Rh6 {[%emt 0:0:2]} 81. Rb5 {[%emt 0:0:3]} Kc6 {[%emt 0:0:1]} 82. Ka4 {[%emt 0:0:2]} Rh8 {[%emt 0:0:2]} 83. Kb4 {[%emt 0:0:4]} Rh4+ {[%emt 0:0:2]} 84. Ka5 {[%emt 0:0:0]} Rh8 {[%emt 0:0:1]} 85. a4 {[%emt 0:0:1]} Ra8+ {[%emt 0:0:1]} 86. Kb4 {[%emt 0:0:1]} Ra7 {[%emt 0:0:1]} 87. Ka3 {[%emt 0:0:6]} Rh7 {[%emt 0:0:2]} 88. Rb3 {[%emt 0:0:1]} Rb7 {[%emt 0:0:2]} 89. Rxb7 {[%emt 0:0:7]} 1/2-1/2

[Event "Biel Challengers Blitz 2024"]
[White "Samunenkov,Ihor"]
[Black "Donchenko,Alexander"]
[Site "Biel"]
[Round "8.1"]
[Annotator "TA"]
[Result "1/2-1/2"]
[Date "2024.07.21"]
[WhiteElo "2532"]
[BlackElo "2639"]
[PlyCount "118"]
[TimeControl "180+2"]

{[%evp 41,118,32,36,33,21,35,70,75,114,71,70,83,85,73,87,27,41,0,0,0,0,0,0,0,0,0,0,0,0,0,0,0,85,0,0,0,8,8,6,-8,0,-39,0,-19,-21,-150,-107,-148,-35,-120,0,-35,-35,-35,-34,-35,-8,-8,0,0,0,0,29980,29981,29981,29982,29982,0,0,0,0,0,0,0,0,0,0,0,0]} 1. d4 {[%emt 0:0:3]} Nf6 {[%emt 0:0:0]} 2. c4 {[%emt 0:0:1]} g6 {[%emt 0:0:1]} 3. Nc3 {[%emt 0:0:2]} Bg7 {[%emt 0:0:1]} 4. e4 {[%emt 0:0:1]} d6 {[%emt 0:0:1]} 5. h3 {[%emt 0:0:2]} O-O {[%emt 0:0:2]} 6. Be3 {[%emt 0:0:1]} Nc6 {[%emt 0:0:0] E71: King's Indian: 4 e4 d6 5 h3.} 7. d5 {[%emt 0:0:3]} Ne5 {[%emt 0:0:1]} 8. f4 {[%emt 0:0:2]} Ned7 {[%emt 0:0:1]} 9. Nge2 {[%emt 0:0:2]} c6 {[%emt 0:0:5]} 10. Ng3 {[%emt 0:0:2]} a6 {[%emt 0:0:5]} 11. a4 $146 {[%emt 0:0:5]} ({Predecessor:} 11. Be2 cxd5 12. cxd5 b5 13. O-O Qa5 14. Rc1 Bb7 15. Qd2 Rac8 16. a3 Rfd8 17. Bd3 e6 18. dxe6 fxe6 19. f5 gxf5 20. exf5 e5 21. Bb1 d5 {½-½ Druska,J (2478)-Manik,M (2319) Skalica op-A 2023 (6)} )cxd5 {[%emt 0:0:15]} 12. cxd5 {[%emt 0:0:2]} b6 {[%emt 0:0:8]} 13. Be2 {[%emt 0:0:6]} Bb7 {[%emt 0:0:1]} 14. O-O {[%emt 0:0:2]} Rc8 {[%emt 0:0:2]} 15. Qd2 {[%emt 0:0:18]} Nc5 {[%emt 0:0:2]} 16. Bd1 {[%emt 0:0:9]} e6 {[%emt 0:0:4]} 17. f5 {[%emt 0:0:25]} exf5 {[%emt 0:0:17]} 18. exf5 {[%emt 0:0:2]} Qe8 {[%emt 0:0:46]} 19. Bg5 {[%emt 0:0:43]} Qe5 {[%emt 0:0:27]} 20. Bf4 {[%emt 0:0:6]} Nfe4 {[%emt 0:0:6]} 21. Ngxe4 {[%emt 0:0:24]} Nxe4 {[%emt 0:0:1]} 22. Qe3 {[%emt 0:0:2]} (22. Bxe5 {simplifies} Nxd2 23. Bxg7 Kxg7 24. f6+ )Rxc3 {[%emt 0:0:12]} 23. bxc3 {[%emt 0:0:1]} Qxd5 {[%emt 0:0:10]} 24. Bf3 {[%emt 0:0:10]} (24. Qxb6 $2 Bxc3 25. Be3 Nd2 $19 (25... Bxa1 $2 26. Bb3 $19 ))gxf5 {[%emt 0:0:2]} 25. Qxb6 {[%emt 0:0:8]} Bxc3 {[%emt 0:0:20]} 26. Rad1 {[%emt 0:0:3]} Qc5+ {[%emt 0:0:1]} 27. Qxc5 {[%emt 0:0:2]} dxc5 {[%emt 0:0:0]} 28. Bh6 {[%emt 0:0:11]} ({Better is} 28. Be3 $16 )Rc8 {[%emt 0:0:5]} 29. Rd7 {[%emt 0:0:7]} Bc6 {[%emt 0:0:2]} 30. Re7 {[%emt 0:0:13]} Bd4+ {[%emt 0:0:3]} 31. Kh2 {[%emt 0:0:9]} Bf6 $1 {[%emt 0:0:6]} 32. Ra7 {[%emt 0:0:5]} Be5+ {[%emt 0:0:2]} 33. g3 {[%emt 0:0:5]} Nxg3 {[%emt 0:0:5]} 34. Bxc6 {[%emt 0:0:2]} Nxf1+ {[%emt 0:0:2]} 35. Kg1 {[%emt 0:0:6]} Ng3 {[%emt 0:0:6]} (35... Rxc6 36. Ra8+ )36. Bd5 {[%emt 0:0:4]} Bc7 {[%emt 0:0:13]} (36... c4 37. Rxf7 Kh8 38. Be6 $14 )(36... Kh8 $11 {keeps the balance.} )37. Bb7 {[%emt 0:0:3]} (37. Bc4 $1 $16 {[%cal Rc4a6]} Be5 38. Rxf7 (38. Bxf7+ Kh8 $16 ))Rd8 $11 {[%emt 0:0:6]} 38. Bxa6 {[%emt 0:0:1]} Bb8 {[%emt 0:0:6]} 39. Rb7 {[%emt 0:0:2]} (39. Re7 $5 Bd6 $8 40. Ra7 $11 )Ne4 {[%emt 0:0:7]} 40. Bf1 {[%emt 0:0:3]} Be5 {[%emt 0:0:2]} 41. Kg2 {[%emt 0:0:3]} Ra8 {[%emt 0:0:2]} 42. Bb5 {[%emt 0:0:1]} Nd6 {[%emt 0:0:1]} 43. Rd7 {[%emt 0:0:1]} (43. Re7 $1 $11 {was the only way to keep the balance.} Nxb5 44. Rxe5 )Nxb5 $1 $17 {[%emt 0:0:3]} 44. axb5 {[%emt 0:0:2]} Rb8 {[%emt 0:0:0]} (44... c4 $17 {...c3 is the strong threat.} 45. b6 c3 )45. b6 {[%emt 0:0:1]} (45. Kf3 $1 $15 )Bg7 {[%emt 0:0:4]} ({Weaker is} 45... Rxb6 46. Rd8# )({Black should play} 45... c4 $1 $17 {[%cal Rc4c3] Strongly threatening ...c3!} 46. Kf3 c3 (46... Rxb6 47. Rd8# ))46. Bxg7 {[%emt 0:0:5]} Kxg7 {[%emt 0:0:0]} 47. b7 {[%emt 0:0:1]} Kf6 {[%emt 0:0:3]} 48. Rc7 {[%emt 0:0:1]} Ke6 {[%emt 0:0:1]} 49. Kf3 {[%emt 0:0:3]} Kd6 {[%emt 0:0:5]} 50. Rxf7 {[%emt 0:0:2]} Kc6 {[%emt 0:0:0]} 51. Rxh7 {[%emt 0:0:2]} Rxb7 $2 {[%emt 0:0:1][%mdl 8192]} (51... c4 $11 52. Ke3 Rd8 (52... Rxb7 53. Rxb7 Kxb7 54. h4 Kc7 55. h5 Kd6 56. h6 c3 57. Kd3 ))52. Rxb7 {[%emt 0:0:2]} Kxb7 {[%emt 0:0:1] [#]} 53. h4 $1 {[%emt 0:0:1]} c4 {[%emt 0:0:6] [#]} 54. h5 $2 {[%emt 0:0:3]} (54. Ke3 $1 {mates} Kb6 55. h5 c3 56. Kd3 f4 57. Kxc3 f3 58. Kd3 Kc6 59. h6 )c3 $11 {[%emt 0:0:1]} 55. Ke2 {[%emt 0:0:2]} f4 $1 {[%emt 0:0:0]} 56. h6 {[%emt 0:0:1]} f3+ {[%emt 0:0:1]} 57. Kxf3 {[%emt 0:0:2]} c2 {[%emt 0:0:1]} 58. h7 {[%emt 0:0:1]} c1=Q {[%emt 0:0:1]} 59. h8=Q {[%emt 0:0:3]} Qc6+ {[%emt 0:0:2]} 1/2-1/2